bitfinex/quotes_ETHUSD_20250426
["timestamp","ask_amount","ask_price","bid_price","bid_amount"]
[1745686312338,5.4338,1801.9,1801.7,5.6824187]
[1745686312943,5.4338,1801.9,1801.7,5.68235474]
[1745686314845,5.4338,1801.9,1801.7,0.13223061]
[1745686315253,5.4338,1801.9,1801.7,5.55031359]
[1745686315428,5.4338,1801.9,1801.8,0.1278239]
[1745686315751,5.97718,1801.9,1801.8,0.1278239]
[1745686320543,4.652,1801.9,1801.8,5.67782945]
[1745686321757,4.652,1801.9,1801.8,6.45452945]
[1745686324974,4.652,1801.9,1801.8,5.67782945]
[1745686325486,4.652,1801.9,1801.8,0.1278239]
[1745686325658,10.97469754,1801.9,1801.8,0.1278239]
[1745686325862,0.773,1801.7,1801.4,5.55109772]
[1745686326086,0.773,1801.7,1801.2,5.55162097]
[1745686326385,6.32349617,1801.7,1801.3,5.5515435]
[1745686326555,6.32349617,1801.7,1801.4,0.12794294]
[1745686326991,6.32349617,1801.7,1801.2,5.55162097]
[1745686327169,0.63234962,1801.6,1801.3,0.12794294]
[1745686327370,4.649,1801.5,1801.3,0.12794294]
[1745686327953,4.649,1801.5,1801.3,5.67940559]
[1745686328282,4.649,1801.5,1801.4,5.55123792]
[1745686328658,4.649,1801.5,1801.4,5.68168208]
[1745686330090,4.649,1801.5,1801.4,0.13044416]
[1745686330982,4.649,1801.5,1801.4,5.68168208]
[1745686331186,4.649,1801.5,1801.4,0.13044416]
[1745686332292,4.649,1801.5,1801.4,5.68168208]
[1745686333994,4.649,1801.5,1801.4,0.13044416]
[1745686338795,0.773,1801.7,1801.5,5.55091603]
[1745686339100,4.65,1801.6,1801.5,6.19753205]
[1745686340377,5.99938409,1801.8,1801.6,5.55040292]
[1745686340582,4.65,1801.7,1801.6,5.55040292]
[1745686341006,4.65,1801.7,1801.6,6.33520292]
[1745686342201,4.65,1801.7,1801.6,6.4685654]
[1745686343112,4.65,1801.7,1801.6,7.67051354]
[1745686344331,4.65,1801.7,1801.6,6.4685654]
[1745686347521,4.65,1802.0,1801.9,5.54940618]
[1745686348017,4.65,1802.0,1801.9,5.68276866]
[1745686348624,0.7746,1802.2,1802.0,5.54935005]
[1745686348919,4.65,1802.1,1802.0,5.54935005]
[1745686349811,4.65,1802.1,1801.9,5.54940618]
[1745686351819,4.65,1802.1,1801.9,5.54941325]
[1745686352722,4.6,1802.1,1801.9,5.54941325]
[1745686354439,4.6,1802.1,1802.0,5.54938956]
[1745686357237,4.6,1802.1,1802.0,5.67774928]
[1745686359306,17.4152,1802.4,1802.1,5.54878224]
[1745686359627,4.648,1802.3,1802.2,5.54871237]
[1745686359934,4.648,1802.3,1802.2,5.67647672]
[1745686360320,4.648,1802.3,1802.2,0.12776435]
[1745686361823,4.647,1802.3,1802.2,0.12776435]
[1745686362926,10.19546584,1802.3,1802.2,0.12776435]
[1745686363130,4.647,1802.3,1802.2,0.12776435]
[1745686363332,4.647,1802.3,1802.0,5.54937027]
[1745686363548,4.647,1802.3,1802.2,0.12776435]
[1745686364032,4.647,1802.3,1802.0,5.54937027]
[1745686364213,4.647,1802.3,1802.1,0.12776435]
[1745686367649,4.95854935,1802.3,1802.1,0.12776435]
[1745686368349,11.14614939,1802.3,1801.9,5.54967027]
[1745686368645,0.7823,1802.2,1802.0,0.12681176]
[1745686368814,1.09384935,1802.2,1802.0,0.12681176]
[1745686369013,1.09384935,1802.2,1801.9,5.54966892]
[1745686369324,0.7823,1802.2,1802.0,0.12681176]
[1745686369524,0.7823,1802.2,1802.0,5.67615474]
[1745686372365,0.7823,1802.2,1802.1,5.54908162]
[1745686372661,4.647,1802.3,1802.1,5.54908162]
[1745686372815,4.647,1802.3,1802.1,5.67589338]
[1745686373016,0.31187017,1802.2,1802.1,5.67589338]
[1745686373216,0.31187017,1802.2,1802.1,0.12681176]
[1745686373448,1.13867017,1802.2,1802.1,0.12681176]
[1745686374824,0.31187017,1802.2,1802.1,0.12681176]
[1745686377553,0.31187017,1802.2,1802.1,5.67589338]
[1745686377746,0.31187017,1802.2,1802.1,7.6146985]
[1745686378773,4.647,1802.3,1802.2,5.54877372]
[1745686378939,4.647,1802.3,1802.2,5.67570457]
[1745686380171,4.95904627,1802.3,1802.2,5.67570457]
[1745686380775,0.31204627,1802.3,1802.2,5.67570457]
[1745686381074,0.31204627,1802.3,1802.2,6.9920616]
[1745686381075,4.95904627,1802.3,1802.2,6.9920616]
[1745686381438,4.647,1802.3,1802.2,6.9920616]
[1745686384662,16.663,1802.6,1802.5,6.3173502]
[1745686384861,4.647,1802.6,1802.5,9.3173502]
[1745686385068,4.647,1802.6,1802.5,10.99675907]
[1745686391262,0.8164,1803.2,1803.0,5.54611122]
[1745686391581,4.646,1803.1,1803.0,5.54611122]
[1745686391798,4.646,1803.1,1802.9,5.54647046]
[1745686391977,0.8164,1803.0,1802.8,5.54691504]
[1745686392171,0.8164,1803.0,1802.9,5.54661933]
[1745686392345,4.646,1803.1,1802.9,5.54661933]
[1745686393783,4.646,1803.1,1803.0,5.5463117]
[1745686396284,4.646,1803.1,1802.9,5.54661933]
[1745686396590,4.646,1803.1,1802.9,11.09298856]
[1745686396756,4.646,1803.1,1802.9,12.20228742]
[1745686397087,4.646,1803.1,1802.9,6.65566809]
[1745686397455,4.646,1803.1,1803.0,5.5463117]
[1745686400351,4.646,1803.1,1802.9,6.65571816]
[1745686400578,4.646,1803.1,1802.9,12.20210521]
[1745686400751,0.8164,1803.0,1802.8,5.54677278]
[1745686400951,4.646,1803.1,1802.9,5.54661933]
[1745686402256,4.646,1803.1,1803.0,0.12020594]
[1745686403003,4.646,1803.1,1803.0,5.66651764]
[1745686404996,4.646,1803.1,1803.0,0.1121271]
[1745686405297,5.907,1803.1,1803.0,0.1121271]
[1745686405591,5.4424,1803.1,1802.9,5.54661765]
[1745686405795,5.4424,1803.1,1803.0,0.1121271]
[1745686406366,5.4424,1803.1,1802.8,5.54669154]
[1745686406593,5.4424,1803.1,1802.9,5.65859366]
[1745686406775,4.646,1803.1,1803.0,5.5463117]
[1745686406993,4.646,1803.1,1803.0,0.11236502]
[1745686410571,4.646,1803.1,1803.0,5.65867672]
[1745686414698,4.95796143,1803.1,1803.0,5.65867672]
[1745686414989,0.31196143,1803.1,1803.0,8.25258964]
[1745686415663,4.644,1803.5,1803.4,5.54508151]
[1745686415882,4.644,1803.5,1803.4,5.65172255]
[1745686416891,4.644,1803.5,1803.4,0.10664104]
[1745686417090,5.8948,1803.5,1803.4,0.10664104]
[1745686417322,5.8948,1803.5,1803.2,11.0908893]
[1745686417508,5.4304,1803.5,1803.4,0.10664104]
[1745686417707,5.4304,1803.5,1803.3,5.5453759]
[1745686417903,5.4304,1803.5,1803.4,0.10664104]
[1745686418118,5.4304,1803.5,1803.4,5.65172255]
[1745686418119,4.644,1803.5,1803.4,5.65172255]
[1745686418325,4.643,1803.5,1803.3,5.54511408]
[1745686418510,4.643,1803.5,1803.4,5.65172255]
[1745686419016,4.643,1803.5,1803.4,0.10664104]
[1745686419217,4.643,1803.5,1803.3,5.5452533]
[1745686419421,4.643,1803.5,1803.4,0.10664104]
[1745686419619,4.643,1803.5,1803.4,5.54508151]
[1745686419820,4.643,1803.5,1803.4,5.65172255]
[1745686420334,4.643,1803.5,1803.4,0.10664104]
[1745686420630,4.643,1803.5,1803.3,5.54514487]
[1745686420792,4.643,1803.5,1803.4,0.10664104]
[1745686420995,4.643,1803.5,1803.3,11.09032419]
[1745686421194,4.643,1803.5,1803.4,0.10664104]
[1745686421408,4.643,1803.5,1803.3,11.09032419]
[1745686421607,4.643,1803.5,1803.4,5.65172255]
[1745686426595,4.643,1803.5,1803.4,5.54508151]
[1745686427800,4.643,1803.5,1803.4,6.73332793]
[1745686429736,0.8864,1803.9,1803.6,5.54428921]
[1745686430030,4.643,1803.8,1803.5,5.54472972]
[1745686430205,4.643,1803.8,1803.5,11.08928003]
[1745686430406,4.643,1803.8,1803.5,5.54455031]
[1745686430722,4.643,1803.8,1803.5,11.08917244]
[1745686430925,4.643,1803.8,1803.6,5.54445721]
[1745686431717,4.643,1803.8,1803.7,5.54415922]
[1745686432048,4.643,1803.8,1803.6,5.54432952]
[1745686436744,4.643,1803.8,1803.5,5.5445786]
[1745686437052,4.643,1803.8,1803.7,0.7831]
[1745686437210,4.643,1803.8,1803.7,6.32725922]
[1745686439848,4.643,1803.8,1803.7,5.54415922]
[1745686444733,4.643,1803.8,1803.7,6.33045922]
[1745686445058,4.643,1803.8,1803.7,7.01186498]
[1745686445259,4.643,1803.8,1803.7,8.26747604]
[1745686446760,4.643,1803.8,1803.7,7.58607028]
[1745686453395,17.7392558,1804.5,1804.0,5.54323725]
[1745686453571,4.641,1804.4,1804.3,5.54231557]
[1745686457900,4.641,1804.4,1804.2,5.54253043]
[1745686458067,5.4179,1804.4,1804.2,5.54253043]
[1745686458571,5.4179,1804.4,1804.2,11.08491159]
[1745686458790,4.641,1804.4,1804.3,5.54231557]
[1745686471409,4.641,1804.4,1804.2,5.5424225]
[1745686471976,4.641,1804.4,1804.3,5.54231557]
[1745686474008,4.641,1804.4,1804.2,5.54244714]
[1745686474210,4.641,1804.4,1804.2,5.54238792]
[1745686474611,4.641,1804.4,1804.2,11.08477584]
[1745686475107,4.641,1804.4,1804.2,5.54238792]
[1745686475283,4.641,1804.4,1804.0,6.36271834]
[1745686475488,5.54269284,1804.2,1803.8,0.7757]
[1745686475813,0.7568,1804.3,1803.7,0.7757]
[1745686476020,0.7568,1803.9,1803.6,5.54425228]
[1745686476321,4.639,1803.8,1803.7,5.54415799]
[1745686476814,4.639,1803.8,1803.6,5.54429492]
[1745686476993,4.639,1803.8,1803.7,5.54415922]
[1745686477183,4.639,1803.8,1803.5,5.54455962]
[1745686477384,4.639,1803.8,1803.5,5.54460188]
[1745686477783,4.639,1803.8,1803.3,1.45710576]
[1745686477985,4.639,1803.8,1803.6,5.54434532]
[1745686478294,4.639,1803.8,1803.3,7.00242239]
[1745686478491,0.7568,1804.1,1803.8,5.54385186]
[1745686478697,4.639,1804.0,1803.8,5.54385186]
[1745686479108,4.639,1804.0,1803.7,5.54414841]
[1745686480427,4.639,1804.0,1803.8,5.54384493]
[1745686480625,4.639,1804.0,1803.7,5.54403733]
[1745686480795,4.639,1804.0,1803.8,6.09809572]
[1745686481237,4.639,1804.0,1803.7,5.54403152]
[1745686481916,6.29973563,1804.1,1803.7,5.54403152]
[1745686482134,4.639,1803.9,1803.7,5.54403152]
[1745686483431,0.7568,1804.1,1803.7,5.54403152]
[1745686483629,4.64,1804.0,1803.7,5.54403152]
[1745686483828,4.64,1804.0,1803.7,5.54397218]
[1745686483998,4.64,1804.0,1803.6,6.31999206]
[1745686485099,4.64,1804.0,1803.7,5.54404523]
[1745686489336,0.778,1803.9,1803.7,5.54412956]
[1745686490517,0.778,1803.9,1803.6,5.54425909]
[1745686490933,0.778,1803.9,1803.7,5.543976]
[1745686491309,0.778,1803.9,1803.7,5.54394742]
[1745686491509,0.778,1803.9,1803.7,11.08788144]
[1745686491847,4.64,1804.0,1803.8,5.54385186]
[1745686492146,5.418,1804.0,1803.8,5.54385186]
[1745686494852,0.7799,1803.9,1803.5,5.54455162]
[1745686495154,0.7799,1803.9,1803.6,5.54444499]
[1745686495959,0.7799,1803.8,1803.2,0.8212]
[1745686496153,5.54399327,1803.8,1803.4,5.54502334]
[1745686496351,1.33429933,1803.7,1803.4,5.54502334]
[1745686496513,4.64,1803.6,1803.4,5.54502334]
[1745686498622,4.64,1803.6,1803.5,5.54477405]
[1745686502735,17.4269,1803.9,1803.7,5.5441171]
[1745686502930,4.64,1803.8,1803.7,5.5441171]
[1745686503446,17.4269,1803.9,1803.7,5.5441171]
[1745686503447,21.287,1803.9,1803.8,6.36505186]
[1745686504553,6.77928409,1804.4,1804.0,5.54312643]
[1745686504852,4.95113134,1804.3,1804.1,5.54274994]
[1745686505046,4.95113134,1804.3,1804.2,5.54262276]
[1745686505253,0.31113134,1804.3,1804.2,5.54262276]
[1745686505554,4.95113134,1804.3,1804.2,5.54262276]
[1745686506133,4.95113134,1804.3,1804.1,5.54281639]
[1745686508919,4.95113134,1804.3,1804.1,5.54270975]
[1745686509120,4.95113134,1804.3,1804.0,5.54307451]
[1745686509316,4.95113134,1804.3,1804.1,5.54281814]
[1745686510754,4.64,1804.3,1804.1,5.54281814]
[1745686511959,4.64,1804.3,1804.2,5.54262276]
[1745686514557,4.64,1804.3,1804.1,5.5427633]
[1745686515353,4.64,1804.3,1804.1,5.54272621]
[1745686515546,4.64,1804.3,1804.1,11.08541197]
[1745686515845,4.64,1804.3,1804.1,5.54268576]
[1745686517187,4.64,1804.3,1804.0,11.90933593]
[1745686519263,4.64,1804.3,1804.1,5.54290385]
[1745686522470,4.64,1804.3,1804.1,5.54279128]
[1745686523060,4.64,1804.3,1804.1,5.54269629]
[1745686526667,4.64,1804.3,1804.2,5.54262276]
[1745686529460,4.64,1804.3,1804.1,5.5427359]
[1745686532089,4.64,1804.3,1804.1,5.54269259]
[1745686532390,4.95093961,1804.3,1804.2,5.54262276]
[1745686533489,4.95093961,1804.3,1804.1,5.54274234]
[1745686533688,4.64,1804.3,1804.1,5.54274234]
[1745686534090,4.64,1804.3,1804.0,5.54308364]
[1745686534480,0.31183053,1804.2,1804.0,5.5430219]
[1745686534691,0.31183053,1804.2,1804.1,5.54292999]
[1745686535392,0.31183053,1804.2,1804.0,6.09732409]
[1745686535991,4.64,1804.3,1804.0,6.09730215]
[1745686537060,4.64,1804.3,1804.1,5.54282343]
[1745686537594,4.638,1804.2,1804.1,5.54282343]
[1745686537895,4.94989401,1804.2,1804.1,5.54282343]
[1745686538089,4.94989401,1804.2,1804.0,6.09735278]
[1745686538299,4.94989401,1804.2,1804.0,6.0973243]
[1745686538591,4.94989401,1804.2,1804.1,5.54292999]
[1745686538772,4.638,1804.2,1804.1,5.54292999]
[1745686539791,4.638,1804.2,1804.0,6.0973636]
[1745686540102,4.638,1804.2,1803.8,0.8051]
[1745686540103,11.46187429,1804.2,1803.8,5.54371392]
[1745686540264,0.31190916,1804.1,1803.8,5.54371392]
[1745686540793,11.46187429,1804.2,1803.8,5.54371392]
[1745686541564,12.75350128,1804.2,1803.8,5.54371392]
[1745686541766,11.46187429,1804.2,1803.8,5.54371392]
[1745686542494,0.31184915,1804.1,1803.8,5.54371392]
[1745686542794,0.31184915,1804.1,1803.9,5.54350385]
[1745686543002,5.4553,1804.2,1803.9,5.54350385]
[1745686544277,4.638,1804.2,1804.1,5.54292999]
[1745686544669,4.94974214,1804.2,1804.1,5.54292999]
[1745686545402,4.94974214,1804.2,1804.0,5.54320407]
[1745686545701,4.638,1804.2,1804.0,11.08619277]
[1745686546202,4.638,1804.2,1804.1,5.54292999]
[1745686547167,4.94974316,1804.2,1804.1,5.54292999]
[1745686547381,4.94974316,1804.2,1804.0,5.54308856]
[1745686547987,4.638,1804.2,1804.0,5.54308856]
[1745686548406,4.638,1804.2,1803.8,6.65249317]
[1745686548591,4.638,1804.2,1803.9,5.54342654]
[1745686548592,0.7716,1804.1,1803.9,5.54342654]
[1745686548898,0.7716,1804.1,1803.8,5.54370672]
[1745686549090,0.7716,1804.1,1803.8,5.5436758]
[1745686550202,0.7716,1804.1,1803.8,11.08728891]
[1745686550502,0.7716,1804.1,1803.8,11.08723759]
[1745686550705,0.7716,1804.1,1803.9,5.54341935]
[1745686550909,0.7716,1804.1,1804.0,5.54323725]
[1745686551083,4.638,1804.2,1803.9,6.33288828]
[1745686551282,4.638,1804.2,1804.1,5.54292999]
[1745686551694,4.9496711,1804.2,1804.1,5.54292999]
[1745686552584,4.9496711,1804.2,1804.0,5.5430609]
[1745686553204,4.638,1804.2,1804.0,5.5430609]
[1745686554010,4.638,1804.2,1804.0,5.54299837]
[1745686554724,4.638,1804.2,1804.1,5.54292999]
[1745686554903,4.94966787,1804.2,1804.1,5.54292999]
[1745686557782,4.94966787,1804.2,1804.0,5.54323295]
[1745686557982,5.52093466,1804.2,1804.0,5.54323295]
[1745686558183,0.31166787,1804.1,1804.0,5.54323295]
[1745686563120,4.638,1804.2,1804.1,5.54292999]
[1745686564014,4.94977983,1804.2,1804.1,5.54292999]
[1745686564226,0.31177983,1804.2,1804.1,6.32652999]
[1745686564384,4.638,1804.4,1804.1,7.58133415]
[1745686564583,4.638,1804.4,1804.3,6.32591557]
[1745686565009,4.9500558,1804.5,1804.4,6.32560842]
[1745686567524,4.9500558,1804.5,1804.4,7.00389841]
[1745686569638,4.9500558,1804.5,1804.4,6.32560842]
[1745686569936,4.9500558,1804.5,1804.4,7.51240082]
[1745686578548,4.9500558,1804.5,1804.4,6.72880082]
[1745686588841,4.9500558,1804.5,1804.4,7.52380082]
[1745686599822,4.9500558,1804.5,1804.4,6.72880082]
[1745686599823,5.7170558,1804.5,1804.4,6.72880082]
[1745686599985,4.9500558,1804.5,1804.4,6.72880082]
[1745686601094,4.9500558,1804.5,1804.2,5.54248308]
[1745686601260,4.9500558,1804.5,1804.3,5.54231418]
[1745686602400,4.9500558,1804.5,1804.4,6.83326799]
[1745686602859,4.9000558,1804.5,1804.4,6.83326799]
[1745686603810,4.9000558,1804.5,1804.4,5.54200842]
[1745686604009,4.9000558,1804.5,1804.4,6.79420989]
[1745686606722,0.2620558,1804.5,1804.4,6.79420989]
[1745686609622,1.0694558,1804.5,1804.4,6.79420989]
[1745686610088,0.2620558,1804.5,1804.4,6.79420989]
[1745686611542,4.8980558,1804.5,1804.4,6.79420989]
[1745686613799,4.8980558,1804.5,1804.4,7.56900989]
[1745686614529,4.8980558,1804.5,1804.4,8.24660198]
[1745686615498,4.8980558,1804.5,1804.4,7.56900989]
[1745686616208,0.2620558,1804.5,1804.4,7.56900989]
[1745686616902,0.2620558,1804.5,1804.4,6.79420989]
[1745686618662,1.0694558,1804.5,1804.3,5.54212283]
[1745686618836,1.0694558,1804.5,1804.4,5.54200842]
[1745686619637,1.0694558,1804.5,1804.3,5.54212283]
[1745686620625,1.0694558,1804.5,1804.3,5.5420825]
[1745686622155,1.0694558,1804.5,1804.3,5.54207574]
[1745686622401,1.0694558,1804.5,1804.2,5.5424813]
[1745686622539,0.8212,1804.4,1804.2,5.54261959]
[1745686622729,4.636,1804.3,1804.2,5.54261959]
[1745686634893,4.636,1804.3,1804.2,5.52518326]
[1745686639695,4.636,1804.3,1803.7,0.28968137]
[1745686639873,0.7672,1804.0,1803.8,5.54373162]
[1745686640078,4.636,1803.9,1803.8,5.54373162]
[1745686640653,4.636,1803.9,1803.7,5.54398715]
[1745686640853,4.636,1803.9,1802.8,0.41971774]
[1745686640854,3.0,1803.5,1802.8,0.41971774]
[1745686641059,6.31300722,1803.2,1802.8,0.41971774]
[1745686641274,5.54614607,1803.1,1802.5,6.63212654]
[1745686641496,4.636,1803.0,1802.6,5.54754243]
[1745686641699,4.636,1803.0,1802.7,5.54721348]
[1745686641862,4.636,1803.0,1802.7,5.54710553]
[1745686642896,4.636,1803.0,1802.9,5.54661933]
[1745686643092,0.7672,1803.2,1802.9,5.54661933]
[1745686643298,4.636,1803.1,1802.9,0.7946]
[1745686643659,4.636,1803.1,1803.0,5.54615182]
[1745686644159,0.7672,1803.4,1803.3,5.545389]
[1745686644377,5.4032,1803.4,1803.2,5.54553346]
[1745686645891,0.7672,1803.4,1803.2,5.54553346]
[1745686646096,0.7672,1803.4,1803.3,5.545389]
[1745686646260,5.4042,1803.4,1803.3,5.545389]
[1745686650294,5.4042,1803.4,1803.2,5.54556388]
[1745686652883,5.4042,1803.4,1803.3,5.545389]
[1745686653097,0.7839,1803.6,1803.4,5.54500988]
[1745686653309,4.637,1803.5,1803.4,5.54500988]
[1745686655302,4.637,1803.5,1803.3,6.3244298]
[1745686655506,4.637,1803.5,1803.3,5.5452298]
[1745686657414,4.637,1803.5,1803.1,5.54579783]
[1745686657570,5.17909,1803.5,1803.3,5.54537964]
[1745686658792,4.637,1803.5,1803.3,5.54537964]
[1745686660308,4.637,1803.5,1803.3,5.54520635]
[1745686662972,4.637,1803.5,1803.4,5.54508151]
[1745686663178,16.642,1803.8,1803.7,5.54415922]
[1745686663400,21.28,1803.8,1803.7,5.54415922]
[1745686664917,21.28,1803.8,1803.1,3.0]
[1745686665213,22.0957,1803.8,1803.5,5.54459671]
[1745686665415,22.0957,1803.8,1803.5,5.54457541]
[1745686665595,21.28,1803.8,1803.6,5.54445237]
[1745686666428,21.28,1803.8,1803.6,5.54428408]
[1745686667702,21.28,1803.8,1803.6,5.54421528]
[1745686668087,21.28,1803.8,1803.7,5.54415922]
[1745686669326,21.28,1803.8,1803.6,5.54425698]
[1745686669694,21.28,1803.8,1803.6,11.08851362]
[1745686669892,21.28,1803.8,1803.7,5.54415922]
[1745686670096,0.8287,1804.3,1804.0,5.54323725]
[1745686670301,4.637,1804.2,1804.0,5.54323725]
[1745686670913,0.8287,1804.3,1804.0,5.54323725]
[1745686671117,4.637,1804.2,1804.1,6.34971704]
[1745686672326,4.637,1804.2,1804.1,5.54291704]
[1745686675928,4.637,1804.2,1804.0,5.54323232]
[1745686677227,4.637,1804.2,1804.0,5.54303163]
[1745686677228,5.4584,1804.2,1804.0,5.54303163]
[1745686677421,5.4584,1804.2,1803.9,5.54340328]
[1745686678018,5.4584,1804.2,1804.0,5.54321692]
[1745686680324,5.4584,1804.2,1803.9,5.54334989]
[1745686680725,6.62623102,1804.2,1803.9,5.54330741]
[1745686681035,6.62623102,1804.2,1803.8,5.54372692]
[1745686681232,6.62623102,1804.2,1803.9,5.54335449]
[1745686681947,6.62623102,1804.2,1803.9,5.54330502]
[1745686682753,6.62623102,1804.2,1804.0,5.54322009]
[1745686683547,5.80483102,1804.2,1804.1,5.54292999]
[1745686683752,4.637,1804.2,1804.1,5.54292999]
[1745686687157,4.637,1804.2,1804.0,6.32395416]
[1745686687465,4.637,1804.2,1803.9,5.54334516]
[1745686687623,0.7635,1804.1,1803.9,5.54334061]
[1745686688624,0.7635,1804.1,1803.8,5.54368875]
[1745686688824,0.7635,1804.1,1803.9,5.54354376]
[1745686690971,0.7635,1804.1,1803.8,5.54379469]
[1745686691141,1.30355,1804.1,1803.9,5.54345029]
[1745686692049,1.30355,1804.1,1803.8,5.54369927]
[1745686692257,1.30355,1804.1,1803.8,5.54362411]
[1745686692468,1.30355,1804.1,1803.9,5.54352247]
[1745686693652,4.637,1804.2,1804.0,5.54299861]
[1745686693860,4.637,1804.2,1804.1,5.54292999]
[1745686695072,5.99938409,1804.3,1804.2,5.54262276]
[1745686695247,10.64138409,1804.3,1804.2,5.54262276]
[1745686696040,10.64138409,1804.3,1804.1,5.54277171]
[1745686696240,10.64138409,1804.3,1804.1,11.08550531]
[1745686696670,10.64138409,1804.3,1804.2,5.54262276]
[1745686698841,4.642,1804.3,1804.2,5.54262276]
[1745686700780,4.642,1804.3,1804.1,5.54276416]
[1745686701862,4.642,1804.3,1804.1,5.54270597]
[1745686702188,4.642,1804.3,1804.2,5.54262276]
[1745686702679,4.642,1804.3,1804.1,5.54277523]
[1745686703384,4.642,1804.3,1804.2,5.54262276]
[1745686710693,16.9110558,1804.5,1804.4,6.33010842]
[1745686710861,21.5530558,1804.5,1804.4,6.33010842]
[1745686711060,4.9040558,1804.5,1804.4,6.33010842]
[1745686719115,4.9040558,1804.5,1804.4,5.54200842]
[1745686727574,4.9040558,1804.5,1804.4,6.33010842]
[1745686727833,4.9040558,1804.5,1804.4,7.51734622]
[1745686730533,0.2620558,1804.5,1804.4,7.51734622]
[1745686732233,0.2620558,1804.5,1804.4,6.72924622]
[1745686732538,0.2620558,1804.5,1804.4,5.54200842]
[1745686733697,0.2620558,1804.5,1804.4,6.31160842]
[1745686749455,0.2620558,1804.5,1804.4,5.54200842]
[1745686756132,0.2620558,1804.5,1804.4,6.21960051]
[1745686758168,0.2620558,1804.5,1804.4,6.27500938]
[1745686758472,0.2620558,1804.5,1804.4,8.2641684]
[1745686759084,0.1,1804.9,1804.8,5.54078014]
[1745686760771,0.1,1804.9,1804.8,6.34728014]
[1745686761174,0.1,1804.9,1804.8,6.7554946]
[1745686764684,0.1,1804.9,1804.8,9.7554946]
[1745686764985,0.1,1804.9,1804.8,11.35290091]
[1745686779804,0.8837,1804.9,1804.8,7.13818645]
[1745686780009,0.8837,1804.9,1804.8,5.54078014]
[1745686785821,0.1,1804.9,1804.8,5.54078014]
[1745686793632,0.1,1804.9,1804.8,6.83111913]
[1745686794035,0.1,1804.9,1804.8,7.61281913]
[1745686795634,0.1,1804.9,1804.8,6.99964676]
[1745686795800,0.1,1804.9,1804.8,8.29454671]
[1745686800350,0.8152,1804.8,1804.4,0.28955972]
[1745686800504,1.49236662,1804.8,1804.4,0.28955972]
[1745686800710,0.8152,1804.7,1804.5,5.54165876]
[1745686801015,0.8152,1804.7,1804.6,5.54139421]
[1745686801199,0.1,1804.9,1804.8,5.54078014]
[1745686801404,0.1,1804.9,1804.8,8.54078014]
[1745686801602,0.1,1804.9,1804.8,5.54078014]
[1745686801817,0.9152,1804.9,1804.8,5.54078014]
[1745686803536,0.1,1804.9,1804.8,5.54078014]
[1745686803809,0.1,1804.9,1804.8,6.64895617]
[1745686806921,0.9152,1804.9,1804.8,6.64895617]
[1745686807121,0.9152,1804.9,1804.8,5.54078014]
[1745686809651,0.1,1804.9,1804.8,5.54078014]
[1745686817035,0.1,1804.9,1804.8,6.36908014]
[1745686818044,0.1,1804.9,1804.8,5.54078014]
[1745686820878,0.8795,1804.9,1804.8,5.54078014]
[1745686822714,0.8795,1804.9,1804.8,6.64894932]
[1745686823196,0.8795,1804.9,1804.8,5.54078014]
[1745686828770,0.1,1804.9,1804.8,5.54078014]
[1745686831936,0.1,1804.9,1804.8,7.59317678]
[1745686835835,0.1,1804.9,1804.8,8.00584873]
[1745686836128,0.1,1804.9,1804.8,6.71535209]
[1745686836302,0.1,1804.9,1804.8,7.17907847]
[1745686840039,0.1,1804.9,1804.8,5.54078014]
[1745686848841,0.8869,1804.9,1804.8,5.54078014]
[1745686850938,0.1,1804.9,1804.8,5.54078014]
[1745686852147,0.8869,1804.9,1804.7,5.54096403]
[1745686852466,0.8869,1804.9,1804.8,5.54078014]
[1745686855560,0.8869,1804.9,1804.4,0.28958394]
[1745686855863,0.8869,1804.9,1804.4,3.28958394]
[1745686856255,0.8869,1804.9,1804.7,5.5410646]
[1745686857162,0.8869,1804.9,1804.6,5.54125998]
[1745686857365,0.8869,1804.9,1804.5,5.54153688]
[1745686857824,0.7869,1804.8,1804.5,5.54153688]
[1745686858025,4.633,1804.7,1804.5,5.54153688]
[1745686858371,0.7869,1804.6,1804.5,5.5417013]
[1745686864967,4.633,1804.7,1804.6,5.54139421]
[1745686867100,4.633,1804.7,1804.5,5.54152924]
[1745686867249,5.17721,1804.7,1804.5,5.54145446]
[1745686868593,5.17721,1804.7,1804.5,11.08291003]
[1745686868883,4.633,1804.7,1804.5,11.08291003]
[1745686870308,4.633,1804.7,1804.6,5.54139421]
[1745686871850,0.7427173,1804.9,1804.6,5.54139421]
[1745686871851,0.1,1804.9,1804.6,6.83189085]
[1745686872051,0.1,1804.9,1804.8,6.83127678]
[1745686872275,0.1,1804.9,1804.8,11.15368359]
[1745686872584,0.1,1804.9,1804.8,11.20908272]
[1745686872811,0.1,1804.9,1804.8,11.57992818]
[1745686872957,0.1,1804.9,1804.8,12.37622818]
[1745686873503,0.1,1804.9,1804.8,5.54078014]
[1745686885407,0.1,1804.9,1804.8,6.36448014]
[1745686888025,0.1,1804.9,1804.8,9.36448014]
[1745686889723,0.7797,1805.7,1805.2,5.5395524]
[1745686890035,4.633,1805.4,1805.3,5.53924555]
[1745686890803,0.7797,1805.7,1805.5,5.53859924]
[1745686891005,4.633,1805.6,1805.5,5.53859924]
[1745686891299,4.633,1805.6,1805.4,5.53874019]
[1745686892284,4.633,1805.6,1805.5,5.53863195]
[1745686894827,4.633,1805.6,1805.4,5.53877445]
[1745686895319,4.633,1805.6,1805.4,11.07751742]
[1745686895526,4.633,1805.6,1805.4,5.53874297]
[1745686895730,4.633,1805.6,1805.4,11.07746319]
[1745686896092,4.633,1805.6,1805.4,5.53872022]
[1745686896998,4.633,1805.6,1805.4,11.07744967]
[1745686897193,4.633,1805.6,1805.5,5.53863195]
[1745686897401,0.7595,1805.5,1805.0,0.769]
[1745686897596,0.7595,1805.5,1805.2,5.53934381]
[1745686897795,0.7595,1805.5,1804.9,8.9662984]
[1745686897994,0.7595,1805.5,1805.2,5.53937396]
[1745686898320,0.7595,1805.5,1805.3,5.53917029]